[Event "Titled Tuesday Blitz November 15 Early 2022"]
[White "Potapova, Margarita"]
[Black "Cheparinov, Ivan"]
[WhiteFideId "14126869"]
[BlackFideId "2905540"]
[WhiteElo "2272"]
[BlackElo "2622"]
[Result "0-1"]
[Round "04"]
[TimeControl "180+1"]
[Date "2022.11.16"]
[WhiteClock "0:00:03"]
[BlackClock "0:01:24"]

1. d4 {[%clk 0:02:58]}  Nf6 {[%clk 0:02:59]} 2. c4 {[%clk 0:02:58]}  g6 {[%clk 0:03:00]} 3. Nc3 {[%clk 0:02:58]}  d5 {[%clk 0:03:00]} 4. cxd5 {[%clk 0:02:59]}  Nxd5 {[%clk 0:03:00]} 5. e4 {[%clk 0:03:00]}  Nxc3 {[%clk 0:03:01]} 6. bxc3 {[%clk 0:03:01]}  Bg7 {[%clk 0:03:01]} 7. Be3 {[%clk 0:03:01]}  c5 {[%clk 0:03:01]} 8. Nf3 {[%clk 0:03:02]}  Qa5 {[%clk 0:02:58]} 9. Qd2 {[%clk 0:03:02]}  Nc6 {[%clk 0:02:55]} 10. Rb1 {[%clk 0:03:02]}  a6 {[%clk 0:02:55]} 11. Rc1 {[%clk 0:03:02]}  cxd4 {[%clk 0:02:56]} 12. cxd4 {[%clk 0:03:03]}  Qxd2+ {[%clk 0:02:56]} 13. Kxd2 {[%clk 0:03:04]}  e6 {[%clk 0:02:56]} 14. Bd3 {[%clk 0:03:01]}  O-O {[%clk 0:02:54]} 15. Rc4 {[%clk 0:02:45]}  Bd7 {[%clk 0:02:34]} 16. Ke2 {[%clk 0:02:31]}  Rfd8 {[%clk 0:02:14]} 17. d5 {[%clk 0:01:55]}  exd5 {[%clk 0:02:07]} 18. exd5 {[%clk 0:01:56]}  Ne7 {[%clk 0:02:03]} 19. d6 {[%clk 0:01:18]}  Nd5 {[%clk 0:02:00]} 20. Bg5 {[%clk 0:00:42]}  Re8+ {[%clk 0:01:58]} 21. Kd2 {[%clk 0:00:41]}  Re6 {[%clk 0:01:57]} 22. Be7 {[%clk 0:00:13]}  Nxe7 {[%clk 0:01:45]} 23. dxe7 {[%clk 0:00:14]}  Rxe7 {[%clk 0:01:42]} 24. Re1 {[%clk 0:00:15]}  Rxe1 {[%clk 0:01:40]} 25. Nxe1 {[%clk 0:00:14]}  Bc6 {[%clk 0:01:32]} 26. Be4 {[%clk 0:00:12]}  Rd8+ {[%clk 0:01:31]} 27. Kc2 {[%clk 0:00:12]}  Bb5 {[%clk 0:01:26]} 28. Rc7 {[%clk 0:00:10]}  Ba4+ {[%clk 0:01:26]} 29. Kc1 {[%clk 0:00:03]}  Rd1# {[%clk 0:01:24]} 0-1


[Site "https://www.chess.com"]

[Event "Titled Tuesday Blitz November 15 Early 2022"]
[White "Pranav, V"]
[Black "Mendonca, Mateus Nakajo"]
[WhiteFideId "25060783"]
[BlackFideId "2110954"]
[WhiteElo "2430"]
[BlackElo "2310"]
[Result "1-0"]
[Round "04"]
[TimeControl "180+1"]
[Date "2022.11.16"]
[WhiteClock "0:00:45"]
[BlackClock "0:00:46"]

1. e4 {[%clk 0:03:00]}  e5 {[%clk 0:02:56]} 2. Nf3 {[%clk 0:03:01]}  Nf6 {[%clk 0:02:56]} 3. Nc3 {[%clk 0:02:58]}  Nc6 {[%clk 0:02:54]} 4. g3 {[%clk 0:02:58]}  Bc5 {[%clk 0:02:47]} 5. Bg2 {[%clk 0:02:56]}  d6 {[%clk 0:02:46]} 6. d3 {[%clk 0:02:56]}  O-O {[%clk 0:02:43]} 7. O-O {[%clk 0:02:54]}  a6 {[%clk 0:02:35]} 8. h3 {[%clk 0:02:53]}  Ne7 {[%clk 0:02:33]} 9. Bg5 {[%clk 0:02:50]}  Ne8 {[%clk 0:02:27]} 10. d4 {[%clk 0:02:47]}  exd4 {[%clk 0:02:25]} 11. Nxd4 {[%clk 0:02:48]}  h6 {[%clk 0:02:22]} 12. Be3 {[%clk 0:02:44]}  Nf6 {[%clk 0:02:15]} 13. Qd2 {[%clk 0:02:42]}  Re8 {[%clk 0:02:15]} 14. Rfe1 {[%clk 0:02:42]}  Ng6 {[%clk 0:02:13]} 15. Rad1 {[%clk 0:02:38]}  Bb4 {[%clk 0:02:07]} 16. f3 {[%clk 0:02:16]}  Ne5 {[%clk 0:02:01]} 17. Qe2 {[%clk 0:02:02]}  Bd7 {[%clk 0:01:59]} 18. a3 {[%clk 0:01:56]}  Bc5 {[%clk 0:01:54]} 19. f4 {[%clk 0:01:53]}  Nc6 {[%clk 0:01:53]} 20. Nxc6 {[%clk 0:01:51]}  Bxe3+ {[%clk 0:01:53]} 21. Qxe3 {[%clk 0:01:52]}  Bxc6 {[%clk 0:01:52]} 22. Qd4 {[%clk 0:01:50]}  Nd7 {[%clk 0:01:31]} 23. Qf2 {[%clk 0:01:38]}  Qf6 {[%clk 0:01:28]} 24. Re3 {[%clk 0:01:25]}  Re7 {[%clk 0:01:28]} 25. e5 {[%clk 0:01:06]}  dxe5 {[%clk 0:01:27]} 26. Bxc6 {[%clk 0:01:07]}  bxc6 {[%clk 0:01:14]} 27. f5 {[%clk 0:01:05]}  e4 {[%clk 0:00:59]} 28. Nxe4 {[%clk 0:01:05]}  Qxb2 {[%clk 0:00:59]} 29. f6 {[%clk 0:01:05]}  Rxe4 {[%clk 0:00:56]} 30. Rxe4 {[%clk 0:01:02]}  Nxf6 {[%clk 0:00:56]} 31. Re3 {[%clk 0:00:57]}  Nd5 {[%clk 0:00:51]} 32. Rf3 {[%clk 0:00:56]}  Rf8 {[%clk 0:00:48]} 33. c4 {[%clk 0:00:46]}  Nf6 {[%clk 0:00:46]} 34. Qxb2 {[%clk 0:00:45]} 1-0


[Site "https://www.chess.com"]

[Event "Titled Tuesday Blitz November 15 Early 2022"]
[White "Prokofiev, Valentyn"]
[Black "Todorovic, Bojan"]
[WhiteFideId "14160161"]
[BlackFideId "917087"]
[WhiteElo "2259"]
[BlackElo "2266"]
[Result "0-1"]
[Round "04"]
[TimeControl "180+1"]
[Date "2022.11.16"]
[WhiteClock "0:00:08"]
[BlackClock "0:00:18"]

1. d4 {[%clk 0:03:00]}  Nf6 {[%clk 0:02:59]} 2. c4 {[%clk 0:03:01]}  g6 {[%clk 0:02:59]} 3. Nc3 {[%clk 0:03:00]}  Bg7 {[%clk 0:02:59]} 4. e4 {[%clk 0:03:00]}  O-O {[%clk 0:02:58]} 5. Nf3 {[%clk 0:03:01]}  d6 {[%clk 0:02:58]} 6. Be2 {[%clk 0:03:01]}  c5 {[%clk 0:02:58]} 7. O-O {[%clk 0:03:00]}  Nc6 {[%clk 0:02:57]} 8. h3 {[%clk 0:02:37]}  cxd4 {[%clk 0:02:53]} 9. Nxd4 {[%clk 0:02:38]}  Nxe4 {[%clk 0:02:52]} 10. Nxc6 {[%clk 0:02:15]}  Nxc3 {[%clk 0:02:51]} 11. Nxe7+ {[%clk 0:02:04]}  Qxe7 {[%clk 0:02:50]} 12. bxc3 {[%clk 0:02:05]}  Bxc3 {[%clk 0:02:49]} 13. Bh6 {[%clk 0:02:01]}  Bxa1 {[%clk 0:02:42]} 14. Qxa1 {[%clk 0:02:00]}  Qe5 {[%clk 0:02:42]} 15. Bxf8 {[%clk 0:01:46]}  Qxa1 {[%clk 0:02:41]} 16. Rxa1 {[%clk 0:01:47]}  Kxf8 {[%clk 0:02:40]} 17. Bf3 {[%clk 0:01:47]}  Rb8 {[%clk 0:02:39]} 18. Rd1 {[%clk 0:01:19]}  Ke7 {[%clk 0:02:37]} 19. Rf1 {[%clk 0:01:18]}  Be6 {[%clk 0:02:32]} 20. Re1 {[%clk 0:01:18]}  Kd7 {[%clk 0:02:19]} 21. Re4 {[%clk 0:01:18]}  Rc8 {[%clk 0:02:14]} 22. Rh4 {[%clk 0:01:18]}  h5 {[%clk 0:02:05]} 23. Bxb7 {[%clk 0:01:15]}  Rxc4 {[%clk 0:02:04]} 24. Rxc4 {[%clk 0:01:15]}  Bxc4 {[%clk 0:02:03]} 25. a3 {[%clk 0:01:16]}  Kc7 {[%clk 0:01:54]} 26. Ba8 {[%clk 0:01:12]}  Kb6 {[%clk 0:01:54]} 27. f4 {[%clk 0:01:09]}  Kb5 {[%clk 0:01:53]} 28. Kf2 {[%clk 0:01:05]}  Ka4 {[%clk 0:01:53]} 29. Ke3 {[%clk 0:01:06]}  Kxa3 {[%clk 0:01:53]} 30. Kd4 {[%clk 0:01:07]}  Be6 {[%clk 0:01:53]} 31. Kc3 {[%clk 0:01:04]}  a5 {[%clk 0:01:53]} 32. Be4 {[%clk 0:01:03]}  Ka2 {[%clk 0:01:45]} 33. Bc6 {[%clk 0:01:02]}  d5 {[%clk 0:01:39]} 34. Be8 {[%clk 0:00:57]}  Kb1 {[%clk 0:01:37]} 35. g4 {[%clk 0:00:56]}  hxg4 {[%clk 0:01:36]} 36. hxg4 {[%clk 0:00:57]}  Kc1 {[%clk 0:01:05]} 37. f5 {[%clk 0:00:50]}  gxf5 {[%clk 0:01:05]} 38. gxf5 {[%clk 0:00:51]}  Bxf5 {[%clk 0:01:05]} 39. Bxf7 {[%clk 0:00:50]}  Be4 {[%clk 0:01:06]} 40. Kb3 {[%clk 0:00:49]}  d4 {[%clk 0:00:45]} 41. Bc4 {[%clk 0:00:49]}  Bc6 {[%clk 0:00:41]} 42. Ka2 {[%clk 0:00:30]}  Kc2 {[%clk 0:00:40]} 43. Ba6 {[%clk 0:00:27]}  Kc3 {[%clk 0:00:39]} 44. Kb1 {[%clk 0:00:22]}  Be4+ {[%clk 0:00:37]} 45. Ka1 {[%clk 0:00:22]}  Bd5 {[%clk 0:00:36]} 46. Kb1 {[%clk 0:00:09]}  Bc4 {[%clk 0:00:36]} 47. Bc8 {[%clk 0:00:08]}  d3 {[%clk 0:00:36]} 48. Bg4 {[%clk 0:00:07]}  Bb3 {[%clk 0:00:31]} 49. Ka1 {[%clk 0:00:05]}  d2 {[%clk 0:00:29]} 50. Bh5 {[%clk 0:00:05]}  a4 {[%clk 0:00:28]} 51. Bg4 {[%clk 0:00:05]}  a3 {[%clk 0:00:28]} 52. Bh5 {[%clk 0:00:05]}  Kd4 {[%clk 0:00:28]} 53. Bg4 {[%clk 0:00:04]}  Ke3 {[%clk 0:00:28]} 54. Kb1 {[%clk 0:00:03]}  Kf2 {[%clk 0:00:27]} 55. Bh5 {[%clk 0:00:03]}  Ke1 {[%clk 0:00:28]} 56. Bg4 {[%clk 0:00:02]}  Bc4 {[%clk 0:00:26]} 57. Kc2 {[%clk 0:00:03]}  Be2 {[%clk 0:00:26]} 58. Be6 {[%clk 0:00:02]}  d1=Q+ {[%clk 0:00:25]} 59. Kc3 {[%clk 0:00:03]}  Qc1+ {[%clk 0:00:24]} 60. Kb3 {[%clk 0:00:04]}  Qb2+ {[%clk 0:00:23]} 61. Ka4 {[%clk 0:00:04]}  Qb5+ {[%clk 0:00:22]} 62. Kxa3 {[%clk 0:00:05]}  Qa6+ {[%clk 0:00:22]} 63. Kb2 {[%clk 0:00:05]}  Qxe6 {[%clk 0:00:22]} 64. Kc3 {[%clk 0:00:06]}  Qe5+ {[%clk 0:00:20]} 65. Kb4 {[%clk 0:00:06]}  Qd4+ {[%clk 0:00:20]} 66. Kb3 {[%clk 0:00:07]}  Kd2 {[%clk 0:00:19]} 67. Ka2 {[%clk 0:00:07]}  Qb6 {[%clk 0:00:19]} 68. Ka3 {[%clk 0:00:07]}  Kc3 {[%clk 0:00:18]} 69. Ka4 {[%clk 0:00:08]} 0-1


[Site "https://www.chess.com"]

[Event "Titled Tuesday Blitz November 15 Early 2022"]
[White "Pultinevicius, Paulius"]
[Black "Suder, Jakub"]
[WhiteFideId "12809390"]
[BlackFideId "1195310"]
[WhiteElo "2493"]
[BlackElo "2243"]
[Result "1-0"]
[Round "04"]
[TimeControl "180+1"]
[Date "2022.11.16"]
[WhiteClock "0:01:23"]
[BlackClock "0:01:55"]

1. b3 {[%clk 0:03:00]}  Nf6 {[%clk 0:02:59]} 2. Bb2 {[%clk 0:03:01]}  e6 {[%clk 0:02:59]} 3. e3 {[%clk 0:03:02]}  Be7 {[%clk 0:02:58]} 4. Nf3 {[%clk 0:03:01]}  O-O {[%clk 0:02:58]} 5. c4 {[%clk 0:03:01]}  d5 {[%clk 0:02:56]} 6. Nc3 {[%clk 0:03:02]}  c5 {[%clk 0:02:55]} 7. cxd5 {[%clk 0:03:02]}  exd5 {[%clk 0:02:55]} 8. d4 {[%clk 0:03:02]}  Nc6 {[%clk 0:02:54]} 9. Be2 {[%clk 0:03:01]}  Bg4 {[%clk 0:02:54]} 10. dxc5 {[%clk 0:02:59]}  Bxc5 {[%clk 0:02:54]} 11. O-O {[%clk 0:03:00]}  a6 {[%clk 0:02:54]} 12. Rc1 {[%clk 0:03:00]}  Ba7 {[%clk 0:02:54]} 13. h3 {[%clk 0:02:56]}  Bh5 {[%clk 0:02:54]} 14. Nd4 {[%clk 0:02:42]}  Bxe2 {[%clk 0:02:48]} 15. Ncxe2 {[%clk 0:02:41]}  Nxd4 {[%clk 0:02:43]} 16. Bxd4 {[%clk 0:02:31]}  Bxd4 {[%clk 0:02:43]} 17. Qxd4 {[%clk 0:02:25]}  Qd7 {[%clk 0:02:42]} 18. Nc3 {[%clk 0:02:20]}  Rfd8 {[%clk 0:02:34]} 19. Rfd1 {[%clk 0:02:19]}  Rac8 {[%clk 0:02:32]} 20. Na4 {[%clk 0:01:54]}  Rxc1 {[%clk 0:02:28]} 21. Rxc1 {[%clk 0:01:55]}  Rc8 {[%clk 0:02:27]} 22. Rd1 {[%clk 0:01:52]}  Qf5 {[%clk 0:02:16]} 23. Nb6 {[%clk 0:01:42]}  Rd8 {[%clk 0:02:16]} 24. f3 {[%clk 0:01:34]}  Qg5 {[%clk 0:02:04]} 25. e4 {[%clk 0:01:30]}  Re8 {[%clk 0:02:04]} 26. Nxd5 {[%clk 0:01:28]}  Nxd5 {[%clk 0:02:03]} 27. Qxd5 {[%clk 0:01:29]}  Qe3+ {[%clk 0:02:03]} 28. Kh1 {[%clk 0:01:26]}  Qe2 {[%clk 0:01:58]} 29. Qd2 {[%clk 0:01:25]}  Qb5 {[%clk 0:01:56]} 30. Qd7 {[%clk 0:01:25]}  Qe5 {[%clk 0:01:55]} 31. Qxb7 {[%clk 0:01:24]}  a5 {[%clk 0:01:55]} 32. Qb6 {[%clk 0:01:23]} 1-0


[Site "https://www.chess.com"]

[Event "Titled Tuesday Blitz November 15 Early 2022"]
[White "Quispe Santacruz, Javier"]
[Black "Kirillov, Dmitry"]
[WhiteFideId "3800920"]
[BlackFideId "34180572"]
[WhiteElo "1930"]
[BlackElo "2095"]
[Result "0-1"]
[Round "04"]
[TimeControl "180+1"]
[Date "2022.11.16"]
[WhiteClock "0:00:02"]
[BlackClock "0:00:14"]

1. d4 {[%clk 0:02:54]}  d5 {[%clk 0:02:59]} 2. c4 {[%clk 0:02:53]}  e6 {[%clk 0:02:59]} 3. Nc3 {[%clk 0:02:52]}  c6 {[%clk 0:02:57]} 4. cxd5 {[%clk 0:02:51]}  exd5 {[%clk 0:02:58]} 5. Nf3 {[%clk 0:02:47]}  Nf6 {[%clk 0:02:58]} 6. Bg5 {[%clk 0:02:46]}  h6 {[%clk 0:02:57]} 7. Bh4 {[%clk 0:02:45]}  Bf5 {[%clk 0:02:57]} 8. Qb3 {[%clk 0:02:42]}  g5 {[%clk 0:02:57]} 9. Bg3 {[%clk 0:02:42]}  Qb6 {[%clk 0:02:56]} 10. Qxb6 {[%clk 0:02:41]}  axb6 {[%clk 0:02:57]} 11. e3 {[%clk 0:02:28]}  Nbd7 {[%clk 0:02:56]} 12. Be2 {[%clk 0:02:26]}  Bb4 {[%clk 0:02:53]} 13. O-O {[%clk 0:02:26]}  Ke7 {[%clk 0:02:53]} 14. Rfc1 {[%clk 0:02:22]}  Rhc8 {[%clk 0:02:17]} 15. a3 {[%clk 0:02:20]}  Bd6 {[%clk 0:02:17]} 16. Bxd6+ {[%clk 0:02:20]}  Kxd6 {[%clk 0:02:18]} 17. Kf1 {[%clk 0:02:15]}  b5 {[%clk 0:02:16]} 18. Ke1 {[%clk 0:02:08]}  Ne4 {[%clk 0:02:07]} 19. Nxe4+ {[%clk 0:02:06]}  Bxe4 {[%clk 0:02:08]} 20. Kd2 {[%clk 0:02:02]}  f6 {[%clk 0:02:06]} 21. Bd3 {[%clk 0:02:00]}  Bxd3 {[%clk 0:01:54]} 22. Kxd3 {[%clk 0:01:59]}  Ra4 {[%clk 0:01:42]} 23. Rc3 {[%clk 0:01:32]}  b4 {[%clk 0:01:36]} 24. Rb3 {[%clk 0:01:28]}  c5 {[%clk 0:01:36]} 25. Kd2 {[%clk 0:00:20]}  Rca8 {[%clk 0:01:34]} 26. Rc1 {[%clk 0:00:15]}  c4 {[%clk 0:01:09]} 27. Rxb4 {[%clk 0:00:15]}  Rxb4 {[%clk 0:01:09]} 28. axb4 {[%clk 0:00:15]}  Ra2 {[%clk 0:01:05]} 29. Kc2 {[%clk 0:00:13]}  Nb6 {[%clk 0:01:04]} 30. Rb1 {[%clk 0:00:10]}  Na4 {[%clk 0:00:50]} 31. Nd2 {[%clk 0:00:10]}  b5 {[%clk 0:00:32]} 32. f3 {[%clk 0:00:07]}  f5 {[%clk 0:00:31]} 33. e4 {[%clk 0:00:07]}  Nb6 {[%clk 0:00:16]} 34. exf5 {[%clk 0:00:06]}  Ke7 {[%clk 0:00:15]} 35. Re1+ {[%clk 0:00:05]}  Kf7 {[%clk 0:00:15]} 36. Re6 {[%clk 0:00:06]}  Na4 {[%clk 0:00:15]} 37. Rxh6 {[%clk 0:00:04]}  Rxb2+ {[%clk 0:00:15]} 38. Kc1 {[%clk 0:00:03]}  c3 {[%clk 0:00:13]} 39. Nb1 {[%clk 0:00:02]}  Rxg2 {[%clk 0:00:14]} 0-1


[Site "https://www.chess.com"]

[Event "Titled Tuesday Blitz November 15 Early 2022"]
[White "Quizon, Daniel"]
[Black "Petrosyan, Manuel"]
[WhiteFideId "5217911"]
[BlackFideId "13300857"]
[WhiteElo "2380"]
[BlackElo "2561"]
[Result "1/2-1/2"]
[Round "04"]
[TimeControl "180+1"]
[Date "2022.11.15"]
[WhiteClock "0:00:10"]
[BlackClock "0:00:07"]

1. Nf3 {[%clk 0:03:00]}  Nf6 {[%clk 0:02:57]} 2. c4 {[%clk 0:03:00]}  g6 {[%clk 0:02:57]} 3. g3 {[%clk 0:03:00]}  Bg7 {[%clk 0:02:58]} 4. Bg2 {[%clk 0:03:01]}  O-O {[%clk 0:02:58]} 5. O-O {[%clk 0:03:01]}  d6 {[%clk 0:02:59]} 6. d4 {[%clk 0:03:02]}  Nc6 {[%clk 0:02:59]} 7. Nc3 {[%clk 0:03:02]}  Rb8 {[%clk 0:02:59]} 8. b3 {[%clk 0:02:57]}  a6 {[%clk 0:02:59]} 9. a4 {[%clk 0:02:52]}  Nb4 {[%clk 0:02:50]} 10. Bb2 {[%clk 0:02:51]}  c6 {[%clk 0:02:44]} 11. e4 {[%clk 0:02:47]}  a5 {[%clk 0:02:42]} 12. e5 {[%clk 0:02:43]}  dxe5 {[%clk 0:02:36]} 13. dxe5 {[%clk 0:02:43]}  Ng4 {[%clk 0:02:36]} 14. Qe2 {[%clk 0:02:43]}  Bf5 {[%clk 0:02:07]} 15. Nh4 {[%clk 0:02:42]}  Qd3 {[%clk 0:01:43]} 16. Nxf5 {[%clk 0:02:35]}  gxf5 {[%clk 0:01:43]} 17. Rad1 {[%clk 0:02:11]}  Qxe2 {[%clk 0:01:41]} 18. Nxe2 {[%clk 0:02:12]}  Bxe5 {[%clk 0:01:35]} 19. Bd4 {[%clk 0:02:12]}  Bxd4 {[%clk 0:01:31]} 20. Nxd4 {[%clk 0:02:12]}  e6 {[%clk 0:01:31]} 21. Rd2 {[%clk 0:02:01]}  Na6 {[%clk 0:01:18]} 22. h3 {[%clk 0:01:55]}  Nf6 {[%clk 0:01:17]} 23. Bf3 {[%clk 0:01:42]}  Nc5 {[%clk 0:01:16]} 24. Bd1 {[%clk 0:01:43]}  Rfd8 {[%clk 0:01:15]} 25. Bc2 {[%clk 0:01:43]}  Rd7 {[%clk 0:01:05]} 26. Rfd1 {[%clk 0:01:39]}  Rbd8 {[%clk 0:00:59]} 27. Nf3 {[%clk 0:01:36]}  Rxd2 {[%clk 0:00:56]} 28. Rxd2 {[%clk 0:01:37]}  Rxd2 {[%clk 0:00:54]} 29. Nxd2 {[%clk 0:01:38]}  Kg7 {[%clk 0:00:52]} 30. f3 {[%clk 0:01:39]}  h6 {[%clk 0:00:50]} 31. Kf2 {[%clk 0:01:39]}  Nfd7 {[%clk 0:00:49]} 32. Ke3 {[%clk 0:01:39]}  Kf6 {[%clk 0:00:48]} 33. g4 {[%clk 0:01:34]}  fxg4 {[%clk 0:00:48]} 34. hxg4 {[%clk 0:01:35]}  e5 {[%clk 0:00:43]} 35. Nf1 {[%clk 0:01:34]}  Nf8 {[%clk 0:00:40]} 36. Ng3 {[%clk 0:01:35]}  Nfe6 {[%clk 0:00:41]} 37. Nf5 {[%clk 0:01:32]}  Kg5 {[%clk 0:00:41]} 38. Nd6 {[%clk 0:01:32]}  Nd4 {[%clk 0:00:36]} 39. Bd1 {[%clk 0:01:21]}  f5 {[%clk 0:00:36]} 40. f4+ {[%clk 0:01:17]}  Kf6 {[%clk 0:00:34]} 41. fxe5+ {[%clk 0:01:16]}  Kxe5 {[%clk 0:00:34]} 42. Nf7+ {[%clk 0:01:16]}  Kf6 {[%clk 0:00:33]} 43. Kxd4 {[%clk 0:00:51]}  Ne6+ {[%clk 0:00:33]} 44. Kd3 {[%clk 0:00:47]}  Kxf7 {[%clk 0:00:32]} 45. gxf5 {[%clk 0:00:47]}  Nf8 {[%clk 0:00:17]} 46. Kd4 {[%clk 0:00:40]}  Nd7 {[%clk 0:00:17]} 47. Bh5+ {[%clk 0:00:40]}  Kf6 {[%clk 0:00:17]} 48. Be8 {[%clk 0:00:40]}  Ne5 {[%clk 0:00:06]} 49. Kc5 {[%clk 0:00:40]}  Nd3+ {[%clk 0:00:05]} 50. Kb6 {[%clk 0:00:40]}  Nc1 {[%clk 0:00:06]} 51. Kxb7 {[%clk 0:00:36]}  Nxb3 {[%clk 0:00:07]} 52. Kxc6 {[%clk 0:00:37]}  Kxf5 {[%clk 0:00:07]} 53. Kb6 {[%clk 0:00:34]}  Ke6 {[%clk 0:00:04]} 54. c5 {[%clk 0:00:34]}  Ke7 {[%clk 0:00:05]} 55. Bb5 {[%clk 0:00:27]}  Nd4 {[%clk 0:00:02]} 56. c6 {[%clk 0:00:26]}  Nf5 {[%clk 0:00:02]} 57. Kb7 {[%clk 0:00:18]}  Nd6+ {[%clk 0:00:02]} 58. Kb8 {[%clk 0:00:19]}  h5 {[%clk 0:00:02]} 59. c7 {[%clk 0:00:19]}  h4 {[%clk 0:00:02]} 60. c8=Q {[%clk 0:00:18]}  Nxc8 {[%clk 0:00:02]} 61. Kxc8 {[%clk 0:00:19]}  Kd6 {[%clk 0:00:03]} 62. Kb7 {[%clk 0:00:18]}  Kc5 {[%clk 0:00:04]} 63. Ka6 {[%clk 0:00:10]}  Kb4 {[%clk 0:00:04]} 64. Bd7 {[%clk 0:00:09]}  h3 {[%clk 0:00:05]} 65. Bxh3 {[%clk 0:00:08]}  Kxa4 {[%clk 0:00:06]} 66. Bd7+ {[%clk 0:00:09]}  Kb4 {[%clk 0:00:07]} 67. Kb6 {[%clk 0:00:10]}  Ka3 {[%clk 0:00:07]} 68. Kxa5 {[%clk 0:00:10]} 1/2-1/2


[Site "https://www.chess.com"]

[Event "Titled Tuesday Blitz November 15 Early 2022"]
[White "Rakhmanov, Aleksandr"]
[Black "Ovchinnikov, Vsevolod"]
[WhiteFideId "4173708"]
[BlackFideId "24176842"]
[WhiteElo "2530"]
[BlackElo "2376"]
[Result "1-0"]
[Round "04"]
[TimeControl "180+1"]
[Date "2022.11.16"]
[WhiteClock "0:00:28"]
[BlackClock "0:00:03"]

1. d4 {[%clk 0:03:00]}  Nf6 {[%clk 0:02:59]} 2. c4 {[%clk 0:03:00]}  g6 {[%clk 0:02:59]} 3. Nc3 {[%clk 0:03:01]}  d5 {[%clk 0:03:00]} 4. Nf3 {[%clk 0:03:00]}  Bg7 {[%clk 0:03:00]} 5. cxd5 {[%clk 0:03:01]}  Nxd5 {[%clk 0:03:00]} 6. Qa4+ {[%clk 0:03:02]}  c6 {[%clk 0:02:58]} 7. e4 {[%clk 0:03:01]}  Nb6 {[%clk 0:02:57]} 8. Qc2 {[%clk 0:03:00]}  Bg4 {[%clk 0:02:57]} 9. Ne5 {[%clk 0:03:00]}  Be6 {[%clk 0:02:49]} 10. Be3 {[%clk 0:03:00]}  f6 {[%clk 0:02:49]} 11. Nf3 {[%clk 0:02:52]}  O-O {[%clk 0:02:44]} 12. Rd1 {[%clk 0:02:52]}  Bg4 {[%clk 0:02:42]} 13. Be2 {[%clk 0:02:51]}  Kh8 {[%clk 0:02:35]} 14. O-O {[%clk 0:02:49]}  N8d7 {[%clk 0:02:23]} 15. h3 {[%clk 0:02:40]}  Bxf3 {[%clk 0:02:23]} 16. Bxf3 {[%clk 0:02:41]}  e6 {[%clk 0:02:15]} 17. Rfe1 {[%clk 0:02:23]}  Qe8 {[%clk 0:02:03]} 18. d5 {[%clk 0:02:19]}  cxd5 {[%clk 0:02:00]} 19. exd5 {[%clk 0:02:20]}  e5 {[%clk 0:01:59]} 20. d6 {[%clk 0:02:16]}  Qc8 {[%clk 0:01:41]} 21. Qb3 {[%clk 0:01:45]}  f5 {[%clk 0:01:35]} 22. Nd5 {[%clk 0:01:43]}  e4 {[%clk 0:01:31]} 23. Be2 {[%clk 0:01:32]}  Nxd5 {[%clk 0:00:26]} 24. Rxd5 {[%clk 0:01:27]}  Nf6 {[%clk 0:00:19]} 25. Rc1 {[%clk 0:01:15]}  Qd8 {[%clk 0:00:17]} 26. Rdd1 {[%clk 0:01:10]}  b6 {[%clk 0:00:14]} 27. d7 {[%clk 0:01:04]}  Qe7 {[%clk 0:00:12]} 28. Bb5 {[%clk 0:00:37]}  Rad8 {[%clk 0:00:06]} 29. Bf4 {[%clk 0:00:35]}  Qf7 {[%clk 0:00:02]} 30. Qxf7 {[%clk 0:00:32]}  Rxf7 {[%clk 0:00:03]} 31. Rc8 {[%clk 0:00:31]}  Rff8 {[%clk 0:00:02]} 32. Rxd8 {[%clk 0:00:29]}  Rxd8 {[%clk 0:00:03]} 33. Bc7 {[%clk 0:00:28]} 1-0


[Site "https://www.chess.com"]

[Event "Titled Tuesday Blitz November 15 Early 2022"]
[White "Ravot, Sylvain"]
[Black "Bilan, Danila"]
[WhiteFideId "627763"]
[BlackFideId "24161918"]
[WhiteElo "2195"]
[BlackElo "2173"]
[Result "0-1"]
[Round "04"]
[TimeControl "180+1"]
[Date "2022.11.16"]
[WhiteClock "0:00:03"]
[BlackClock "0:00:10"]

1. e4 {[%clk 0:02:55]}  c6 {[%clk 0:02:59]} 2. d4 {[%clk 0:02:54]}  d5 {[%clk 0:02:59]} 3. exd5 {[%clk 0:02:53]}  cxd5 {[%clk 0:02:59]} 4. Bd3 {[%clk 0:02:52]}  Nc6 {[%clk 0:02:59]} 5. c3 {[%clk 0:02:48]}  Qc7 {[%clk 0:02:58]} 6. Ne2 {[%clk 0:02:47]}  Bg4 {[%clk 0:02:52]} 7. O-O {[%clk 0:02:47]}  Nf6 {[%clk 0:02:44]} 8. Qe1 {[%clk 0:02:46]}  Bh5 {[%clk 0:02:18]} 9. f3 {[%clk 0:02:20]}  Bg6 {[%clk 0:02:14]} 10. Bxg6 {[%clk 0:02:06]}  hxg6 {[%clk 0:02:14]} 11. Bf4 {[%clk 0:02:06]}  Qd7 {[%clk 0:02:03]} 12. h3 {[%clk 0:01:46]}  e6 {[%clk 0:01:54]} 13. Nd2 {[%clk 0:01:38]}  Bd6 {[%clk 0:01:52]} 14. Bxd6 {[%clk 0:01:39]}  Qxd6 {[%clk 0:01:53]} 15. f4 {[%clk 0:01:39]}  O-O-O {[%clk 0:01:39]} 16. Nf3 {[%clk 0:01:36]}  Ne4 {[%clk 0:01:38]} 17. Ne5 {[%clk 0:01:31]}  Qc7 {[%clk 0:01:01]} 18. Ng3 {[%clk 0:01:30]}  Nd6 {[%clk 0:00:53]} 19. Qe2 {[%clk 0:01:11]}  Nf5 {[%clk 0:00:48]} 20. Nxf5 {[%clk 0:01:08]}  gxf5 {[%clk 0:00:49]} 21. Nxc6 {[%clk 0:00:38]}  Qxc6 {[%clk 0:00:45]} 22. Rac1 {[%clk 0:00:38]}  Kb8 {[%clk 0:00:44]} 23. Qe5+ {[%clk 0:00:30]}  Qc7 {[%clk 0:00:43]} 24. Qxg7 {[%clk 0:00:31]}  Rdg8 {[%clk 0:00:42]} 25. Qe5 {[%clk 0:00:24]}  Rxh3 {[%clk 0:00:42]} 26. Kf2 {[%clk 0:00:18]}  Rhg3 {[%clk 0:00:37]} 27. Rg1 {[%clk 0:00:17]}  Qxe5 {[%clk 0:00:36]} 28. dxe5 {[%clk 0:00:13]}  b5 {[%clk 0:00:36]} 29. Rce1 {[%clk 0:00:10]}  Kb7 {[%clk 0:00:33]} 30. Re3 {[%clk 0:00:10]}  R3g4 {[%clk 0:00:32]} 31. g3 {[%clk 0:00:08]}  Rh8 {[%clk 0:00:33]} 32. Kg2 {[%clk 0:00:05]}  Kc6 {[%clk 0:00:31]} 33. Rd3 {[%clk 0:00:03]}  Kc5 {[%clk 0:00:28]} 34. Rh1 {[%clk 0:00:02]}  Rxh1 {[%clk 0:00:26]} 35. Kxh1 {[%clk 0:00:03]}  a5 {[%clk 0:00:24]} 36. a3 {[%clk 0:00:04]}  Kc4 {[%clk 0:00:22]} 37. Rd2 {[%clk 0:00:03]}  Rxg3 {[%clk 0:00:21]} 38. Kh2 {[%clk 0:00:01]}  Rf3 {[%clk 0:00:18]} 39. Rd4+ {[%clk 0:00:01]}  Kb3 {[%clk 0:00:18]} 40. Kg2 {[%clk 0:00:01]}  Re3 {[%clk 0:00:16]} 41. Rd2 {[%clk 0:00:02]}  Re1 {[%clk 0:00:11]} 42. Kf2 {[%clk 0:00:02]}  Rb1 {[%clk 0:00:11]} 43. Ke3 {[%clk 0:00:02]}  Rxb2 {[%clk 0:00:12]} 44. Rd1 {[%clk 0:00:03]}  Kxc3 {[%clk 0:00:10]} 45. Rg1 {[%clk 0:00:04]}  d4+ {[%clk 0:00:09]} 46. Kf3 {[%clk 0:00:03]}  d3 {[%clk 0:00:09]} 47. Ke3 {[%clk 0:00:02]}  Re2+ {[%clk 0:00:09]} 48. Kf3 {[%clk 0:00:03]}  Re4 {[%clk 0:00:10]} 49. Rc1+ {[%clk 0:00:02]}  Kb2 {[%clk 0:00:10]} 50. Rc5 {[%clk 0:00:02]}  d2 {[%clk 0:00:10]} 51. Rxb5+ {[%clk 0:00:03]}  Kxa3 {[%clk 0:00:10]} 52. Rxa5+ {[%clk 0:00:03]}  Kb4 {[%clk 0:00:10]} 53. Ra1 {[%clk 0:00:03]}  Kc3 {[%clk 0:00:10]} 54. Rd1 {[%clk 0:00:03]}  Re1 {[%clk 0:00:10]} 0-1


[Site "https://www.chess.com"]